Cogmind - Beta 17 @@@ ROGUE MODE // 2026.06.29 @ 01:41:29 Player: Xo-X0-100101 Result: Destroyed by P-70 Sage with Tesla Rifle Performance ------------- Evolutions (5) 2500 Regions Visited (9) 1800 Robots Destroyed (112) 560 Value Destroyed (3460) 3460 Prototype IDs (8) 160 Alien Tech Used (0) 0 Bonus (44) 44 TOTAL SCORE: 8524 Bonus ------- High Alert Combat Kills 44 Cogmind --------- Core Integrity 0/1000 Matter 287/300 Energy 79/100 System Corruption 5% Temperature Cool (0) Movement Core (50) Location -5/Factory Parts ------- > --- POWER (1) -------- (None) > --- PROPULSION (5) --- (None) > --- UTILITY (8) ------ Target Analyzer > --- WEAPON (3) ------- (None) > --- INVENTORY (5) ---- (None) Peak State ------------ > --- POWER ------------ Fusion Compressor > --- PROPULSION ------- Gyrokinetic Inverter VTOL Module VTOL Module Nuclear Pulse Thruster Nuclear Pulse Thruster > --- UTILITY ---------- Target Analyzer Target Analyzer Core Analyzer Microactuators Microactuators Microactuators Microactuators > --- WEAPON ----------- Impact Mace Impact Mace Axe > --- INVENTORY -------- Antimatter Reactor [Rating: 64] Favorites ----------- Power Light Angular Momentum Engine Engine Light Angular Momentum Engine Power Core Light Nuclear Core Reactor Antimatter Reactor Propulsion Light Treads Treads Light Treads Leg Aluminum Leg Wheel Armored Wheel Hover Unit Airjet Flight Unit VTOL Module Utility Microactuators Device Microactuators Storage Small Storage Unit Processor Target Analyzer Protection Propulsion Shielding Weapon Light Assault Rifle Energy Gun Beamcaster Energy Cannon Subdweller Beam Cannon Ballistic Gun Light Assault Rifle Ballistic Cannon Flak Cannon Launcher Subdweller Shrapnel Launcher Impact Weapon Great Maul Slashing Weapon Axe Build | -11 -10 -10 -10 -8 -7 -6 -6 -6 -5 ------- Run | Yrd Mat Min Sub Mat Fac Fac Was Fac Fac Slots Evolved 10 | . . . . 4 2 2 . . 2 Power . | . . . . . . . . . . Propulsion 3 | . . . . 1 . 1 . . 1 Utility 6 | . . . . 3 1 1 . . 1 Weapon 1 | . . . . . 1 . . . . Parts Attached 101 | 6 3 5 7 42 14 4 5 6 9 Power 12 | 1 1 1 1 4 1 . 1 1 1 Engine 9 | 1 1 1 1 3 1 . . 1 . Core 2 | . . . . 1 . . . . 1 Reactor 1 | . . . . . . . 1 . . Propulsion 38 | 2 . 1 4 13 5 3 . 2 8 Treads 3 | 2 . 1 . . . . . . . Leg 2 | . . . . 2 . . . . . Wheel 15 | . . . 4 10 . . . . 1 Hover 12 | . . . . . 5 3 . 2 2 Flight 6 | . . . . 1 . . . . 5 Utility 31 | 1 2 2 . 15 6 . 4 1 . Device 11 | . . 1 . 4 5 . 1 . . Storage 4 | 1 . . . 3 . . . . . Processor 4 | . . . . 2 1 . . 1 . Hackware . | . . . . . . . . . . Protection 12 | . 2 1 . 6 . . 3 . . Artifact . | . . . . . . . . . . Weapon 20 | 2 . 1 2 10 2 1 . 2 . Energy Gun 4 | . . 1 1 2 . . . . . Energy Cannon 1 | . . . 1 . . . . . . Ballistic Gun 8 | 2 . . . 4 2 . . . . Ballistic Cannon 1 | . . . . 1 . . . . . Launcher 2 | . . . . 2 . . . . . Special Weapon . | . . . . . . . . . . Impact Weapon 3 | . . . . 1 . . . 2 . Slashing Weapon 1 | . . . . . . 1 . . . Piercing Weapon . | . . . . . . . . . . Special Melee Weapon . | . . . . . . . . . . Unidentified Prototypes 6 | . . 1 . 4 . . . 1 . Parts Lost 52 | . 1 4 4 20 3 3 . 4 13 Power 7 | . . 1 2 1 1 1 . 1 . Propulsion 17 | . . 1 1 7 1 . . 2 5 Utility 18 | . 1 1 . 6 1 2 . 1 6 Weapon 10 | . . 1 1 6 . . . . 2 Highest Loss Streak 9 | . 1 3 2 5 3 3 . 1 9 To Critical Strikes . | . . . . . . . . . . Average Backups 6 | 1 5 7 7 8 6 4 3 4 2 Power 1 | . 1 2 1 2 1 . . . . Propulsion 2 | 1 2 2 2 1 1 1 2 3 2 Utility 1 | . 1 2 3 1 2 2 1 . . Weapon . | . . . . 2 1 . . . . Tool/Special . | . . . . . . . . . . Unused Backups 15 | . . . . 8 4 . . 3 . Power 2 | . . . . 2 . . . . . Propulsion 5 | . . . . 2 1 . . 2 . Utility 6 | . . . . 2 3 . . 1 . Weapon 2 | . . . . 2 . . . . . Tool/Special . | . . . . . . . . . . Average Slot Usage (%) 86 | . 96 87 92 81 86 87 96 89 71 Engine 7 | . 13 13 12 8 1 . . 4 . Core 1 | . . . . . 5 5 . . 2 Treads 8 | . 27 27 11 1 . . . . . Wheel 6 | . . . 11 17 2 . . . 1 Hover 6 | . . . . . 17 22 26 22 4 Device 10 | . . 1 . 10 18 25 19 24 19 Storage 8 | . 14 14 14 10 1 . . . . Processor 5 | . . . . 3 8 13 13 16 15 Protection 9 | . 11 10 14 12 8 . 9 4 . Energy Gun 3 | . . 1 14 3 . . . . . Energy Cannon 1 | . . . 3 2 . . . . . Ballistic Gun 11 | . 27 17 10 7 13 10 6 . . Impact Weapon 2 | . . . . . 5 6 6 6 10 Slashing Weapon 1 | . . . . . . 2 6 6 4 Peak Build Rating 64 | 6 7 19 19 29 45 49 58 57 64 Average Rating 26 | 4 6 11 15 23 35 45 55 51 49 On Entrance 26 | . 6 7 16 12 27 44 42 57 49 Avg Prop Armor Cover (%) 4 | . . . . 7 . . . . 3 Naked Turns . | . . . . . . . . . . Heaviest Build 48 | 11 14 21 28 48 38 24 36 36 33 Greatest Support 42 | 40 40 40 40 42 33 37 37 37 20 Greatest Overweight (x) 7 | . . . 1 7 3 . . 1 7 Average Overweight (x) . | . . . . . . . . . . Largest Inventory Capacity 15 | 8 8 8 8 15 10 5 5 5 5 Average Capacity 7 | 7 8 8 8 8 6 5 5 5 5 Most Carried 10 | 3 7 8 8 10 10 5 5 5 5 Average Carried 6 | 1 5 7 7 8 6 4 4 4 2 Final Capacity 10 | 8 8 8 8 10 5 5 5 5 5 Final Carried 10 | 3 7 7 8 10 5 4 5 5 . Class Distribution -------------------- 65% | Mutant 16% | Gladiator 12% | Scavenger-Mutant 5% | Scavenger-Gladiator Dominant Class ---------------- Mutant | -10/Materials Mutant | -10/Mines Mutant | -10/Subcaves Mutant | -8/Materials Mutant | -7/Factory Mutant | -6/Factory Scavenger-Gladiator | -6/Waste Gladiator | -6/Factory Gladiator | -5/Factory Resources | -11 -10 -10 -10 -8 -7 -6 -6 -6 -5 ----------- Run | Yrd Mat Min Sub Mat Fac Fac Was Fac Fac Matter Collected 2394 | 84 296 178 91 837 308 88 80 72 360 Remotely . | . . . . . . . . . . Salvage Created 4283 | . 367 94 342 1336 542 193 265 475 669 Parts 197 | . 35 11 18 76 15 5 2 13 22 Haulers Intercepted 3 | . 1 . . 1 . 1 . . . Recyclers Shooed . | . . . . . . . . . . Parts Field Recycled . | . . . . . . . . . . Retrieved Matter . | . . . . . . . . . . Parts Self-Destructed 10 | . . . 10 . . . . . . Prevented . | . . . . . . . . . . Parts Restored . | . . . . . . . . . . Kills | -11 -10 -10 -10 -8 -7 -6 -6 -6 -5 ------- Run | Yrd Mat Min Sub Mat Fac Fac Was Fac Fac Combat Hostiles Destroyed 75 | . 11 6 5 24 8 2 . 12 7 Melee 18 | . . . . 2 3 1 . 8 4 Guns 34 | . 11 6 3 13 1 . . . . Cannons 6 | . . . 2 4 . . . . . AOE 5 | . . . . 5 . . . . . Classes Destroyed 14 | . 5 . 2 6 1 . . . . Worker 10 | . . . . 5 . 1 . . 4 Builder 3 | . . . . 3 . . . . . Tunneler 1 | . . . . 1 . . . . . Hauler 3 | . 1 . . 1 . 1 . . . Recycler 6 | . . . . 2 2 . . . 2 Operator 4 | . 1 . . 2 1 . . . . Watcher 10 | . 2 . . 3 1 . . 1 3 Swarmer 23 | . 6 6 . 3 . . . 4 4 Grunt 31 | . 5 . 1 15 5 . . 4 1 Brawler 1 | . . . . 1 . . . . . Sentry 5 | . . . 1 3 1 . . . . Hunter 5 | . . . . 2 . 1 . 1 1 Programmer 7 | . . . . . 2 1 . 3 1 Subdweller 3 | . . . 3 . . . . . . Best Kill Streak 11 | . 3 3 2 11 4 1 . 4 11 Combat Bots Only 6 | . 3 3 2 6 3 1 . 4 4 Max Kills in Single Turn 2 | . 1 1 1 2 1 1 . 1 1 Gunslinging . | . . . . . . . . . . Exploded 1 | . . . . 1 . . . . . Melee 1 | . . . . 1 1 1 . 1 1 Uniques/NPCs Destroyed . | . . . . . . . . . . Combat | -11 -10 -10 -10 -8 -7 -6 -6 -6 -5 -------- Run | Yrd Mat Min Sub Mat Fac Fac Was Fac Fac Hostile Shots Fired 628 | . 42 75 20 182 52 29 . 60 168 Missed 179 | . 7 20 2 35 31 11 . 18 55 Hits 449 | . 35 55 18 147 21 18 . 42 113 Melee 4 | . . . . 2 . . . . 2 Projectile 445 | . 35 55 18 145 21 18 . 42 111 AOE 2 | . . . 2 . . . . . . Critical Strikes 15 | . . . . 3 . 1 . 5 6 Actively Blocked 4 | . . . . 1 . . . 3 . Damage Taken 6732 | . 359 438 469 2298 242 319 . 745 1862 Core 1873 | . 11 68 129 407 25 48 . 178 1007 Absorbed by Shields . | . . . . . . . . . . Redirected to Shielding 370 | . 12 39 40 170 3 . . 106 . Core Remaining (%) 62 | 100 . . 16 26 96 . . 73 . Volleys Fired 223 | . 41 34 32 113 3 . . . . Largest 2 | . 2 2 2 2 2 . . . . Hottest 155 | . 40 40 155 140 46 . . . . Shots Fired 362 | . 79 42 62 172 7 . . . . Gun 316 | . 79 42 56 132 7 . . . . Cannon 36 | . . . 6 30 . . . . . Launcher 10 | . . . . 10 . . . . . Special . | . . . . . . . . . . Kinetic 261 | . 79 42 26 107 7 . . . . Thermal 101 | . . . 36 65 . . . . . Explosive . | . . . . . . . . . . Electromagnetic . | . . . . . . . . . . Robot Hit Streak 32 | . 7 4 32 12 6 . . . . Robot Miss Streak 6 | . 4 4 1 6 . . . . . Penetration Max 1 | . . . . 1 . . . . . Secondary Targets 2 | . 2 . . . . . . . . Max Gunslinging Chain 1 | . 1 . . . . . . . . Shots Hit Robots 326 | . 47 21 44 116 23 10 2 32 31 Core Hits 151 | . 26 9 16 78 5 1 1 7 8 Critical Kills 8 | . 1 . . 1 . . . 2 4 Critical Parts Destroyed 29 | . . . . 2 6 4 . 12 5 Critical Strikes 43 | . 1 . 5 4 6 4 . 14 9 Burn 6 | . . . 5 1 . . . . . Destroy 3 | . 1 . . 2 . . . . . Smash 34 | . . . . 1 6 4 . 14 9 Melee Attacks 146 | . . . . 6 25 17 2 53 43 Impact 128 | . . . . 6 25 14 1 44 38 Slashing 18 | . . . . . . 3 1 9 5 Piercing . | . . . . . . . . . . Sneak Attacks 13 | . . . . . 2 2 . . 9 Combat Hostiles 1 | . . . . . . . . . 1 Follow-up Attacks 18 | . . . . . . 3 1 6 8 Damage Inflicted 9546 | . 480 188 720 3152 1086 529 96 1349 1946 Guns 2842 | . 480 188 581 1513 80 . . . . Cannons 603 | . . . 139 464 . . . . . Explosions 959 | . . . . 959 . . . . . Melee 5124 | . . . . 201 1006 529 96 1349 1943 Ramming 18 | . . . . 15 . . . . 3 Kinetic 2982 | . 480 188 145 2089 80 . . . . Thermal 1422 | . . . 575 847 . . . . . Explosive . | . . . . . . . . . . Electromagnetic . | . . . . . . . . . . Impact 4733 | . . . . 201 1006 486 57 1165 1818 Slashing 391 | . . . . . . 43 39 184 125 Piercing . | . . . . . . . . . . Highest Corruption 6 | . . . . 6 1 . . 5 5 Average Corruption 2 | . . . . 2 1 . . 3 3 Corruption Purged 5 | . . . . 5 . . . . . Corruption Blocked . | . . . . . . . . . . Effects 25 | . . . . 12 3 . . 9 1 Message Errors 11 | . . . . 4 2 . . 4 1 Matter Fused 3 | . . . . 1 . . . 2 . Heat Flow Errors 2 | . . . . 2 . . . . . Energy Discharges 3 | . . . . 1 . . . 2 . Data Loss (minor) 3 | . . . . 2 . . . 1 . Misfires 1 | . . . . . 1 . . . . Alerts 2 | . . . . 2 . . . . . Overload Shots . | . . . . . . . . . . Overflow Damage 2094 | . . . . 173 395 310 8 542 666 Projectiles 26 | . . . . 26 . . . . . Explosions 91 | . . . . 91 . . . . . Melee 1977 | . . . . 56 395 310 8 542 666 Knockbacks 25 | . . . . 4 7 2 . 8 4 Impact 22 | . . . . 1 7 2 . 8 4 Kinetic 3 | . . . . 3 . . . . . Secondary . | . . . . . . . . . . Self-Inflicted Damage 82 | . . . . 81 . . . . 1 Shots 3 | . . . . 3 . . . . . Rammed 4 | . . . . 3 . . . . 1 Targets Rammed 4 | . . . . 3 . . . . 1 Kicked . | . . . . . . . . . . Crushed . | . . . . . . . . . . Highest Temperature 360 | . 18 4 46 360 . . . 6 . Average Temperature 51 | . 6 2 17 78 . . . 6 . Received Heat Transfer 1392 | . 66 . 81 837 75 18 . 207 108 Effects 1 | . . . . 1 . . . . . Energy Bleed 1 | . . . . 1 . . . . . Siege Activations . | . . . . . . . . . . Martial Activations . | . . . . . . . . . . Shielding Activations . | . . . . . . . . . . Robots Disrupted . | . . . . . . . . . . Combat Hostiles . | . . . . . . . . . . Robots Corrupted 18 | . . . . . 7 1 . 5 5 Combat Hostiles 12 | . . . . . 4 1 . 4 3 Parts Fried 28 | . . . . . 8 4 . 7 9 Impact Corruptions 66 | . . . . 2 13 6 1 20 24 Robots Melted . | . . . . . . . . . . Combat Hostiles . | . . . . . . . . . . Parts Melted 5 | . . . 2 3 . . . . . Heat Transferred 2745 | . . . 1308 1437 . . . . . Parts Sabotaged 5 | . . . . . . . . . 5 Parts Stolen . | . . . . . . . . . . Parts Stripped . | . . . . . . . . . . Power Chain Reactions . | . . . . . . . . . . Alert | -11 -10 -10 -10 -8 -7 -6 -6 -6 -5 ------- Run | Yrd Mat Min Sub Mat Fac Fac Was Fac Fac Maximum Alert Level 2 | . . . . 2 . . . 1 . Low Security (%) 81 | 100 100 100 . 60 100 100 100 28 100 Level 1 13 | . . . . 21 . . . 71 . Level 2 5 | . . . . 18 . . . . . Level 3 . | . . . . . . . . . . Level 4 . | . . . . . . . . . . Level 5 . | . . . . . . . . . . High Security . | . . . . . . . . . . Max Security . | . . . . . . . . . . Peak Influence 504 | . 70 46 . 504 121 43 7 391 138 Initial 121 | . . . . . 121 37 7 . 113 Average 88 | . 22 5 . 164 47 13 . 241 58 Influence Increases 3175 | . 320 146 40 1137 310 139 . 722 361 Destroy 0b10 Robot/C 1440 | . 220 120 40 480 160 40 . 240 140 Destroy 0b10 Robot/NC 185 | . 20 . . 85 20 10 . 5 45 Destroy Leader 316 | . 46 20 . 88 52 22 . 62 26 Allied During Kill 6 | . . 6 . . . . . . . Successful Hack 33 | . 2 . . 17 3 6 . 5 . Disable Machine 105 | . . . . 60 30 . . 15 . Anti-Garrison Action 150 | . . . . . . . . 150 . Destroy Structure 85 | . 2 . . 77 . 1 . 5 . Partial Spotted 90 | . . . . 15 . 15 . 15 45 Lose Combat Pursuer 765 | . 30 . . 315 45 45 . 225 105 Influence Decreases 3088 | . 320 146 40 870 501 193 22 490 506 Entered New Map 319 | . . . . . 146 39 15 . 119 Time Decay 1921 | . 310 116 40 413 325 153 7 300 257 Lost Part 371 | . 10 30 . 130 30 1 . 40 130 Purge Threat 477 | . . . . 327 . . . 150 . Squads Dispatched 21 | . 2 . . 4 6 2 . 5 2 Investigation 5 | . . . . 1 3 . . 1 . Extermination 6 | . . . . . 2 1 . 1 2 Reinforcement 8 | . 2 . . 3 1 1 . 1 . Assault 2 | . . . . . . . . 2 . Garrison . | . . . . . . . . . . Intercept . | . . . . . . . . . . Searches Triggered . | . . . . . . . . . . Construction Impeded . | . . . . . . . . . . Haulers Reinforced . | . . . . . . . . . . Active Scanning Responses . | . . . . . . . . . . Cargo Convoy Interrupts 1 | . . . . . . . . . 1 Stealth | -11 -10 -10 -10 -8 -7 -6 -6 -6 -5 --------- Run | Yrd Mat Min Sub Mat Fac Fac Was Fac Fac Distress Signals 3 | . . . . 2 . . . 1 . Communications Jammed . | . . . . . . . . . . Distress Signals . | . . . . . . . . . . Times Spotted 183 | . 21 6 8 54 15 10 . 33 36 Peak Tracking Total 18 | . 3 3 2 8 3 4 . 4 18 Tactical Retreats 27 | . 1 . 1 9 3 1 . 8 4 Traps | -11 -10 -10 -10 -8 -7 -6 -6 -6 -5 ------- Run | Yrd Mat Min Sub Mat Fac Fac Was Fac Fac Traps Triggered 8 | . 3 . . 3 . 1 . 1 . Indirectly . | . . . . . . . . . . Trap Hack Attempts . | . . . . . . . . . . Triggered . | . . . . . . . . . . Disarmed 3 | . . . . . . . . . 3 Reprogrammed . | . . . . . . . . . . Reused . | . . . . . . . . . . Traps Extracted . | . . . . . . . . . . Installed . | . . . . . . . . . . Triggered . | . . . . . . . . . . Machines | -11 -10 -10 -10 -8 -7 -6 -6 -6 -5 ---------- Run | Yrd Mat Min Sub Mat Fac Fac Was Fac Fac Machines Disabled 8 | . . . . 4 2 . . 2 . Max in Single Turn 1 | . . . . 1 1 . . 1 . Garrison Access 1 | . . . . . . . . 1 . Machines Repaired . | . . . . . . . . . . Machines Dismantled . | . . . . . . . . . . Machines Sabotaged . | . . . . . . . . . . Overloaded Fab Kills . | . . . . . . . . . . Hacking | -11 -10 -10 -10 -8 -7 -6 -6 -6 -5 --------- Run | Yrd Mat Min Sub Mat Fac Fac Was Fac Fac Machines Accessed 30 | . 2 . . 9 8 1 . 6 4 Terminals 21 | . 2 . . 6 4 1 . 4 4 Fabricators 4 | . . . . . 3 . . 1 . Repair Stations . | . . . . . . . . . . Recycling Units 2 | . . . . 2 . . . . . Scanalyzers 1 | . . . . 1 . . . . . Garrison Access 2 | . . . . . 1 . . 1 . Total Hacks 64 | . 6 . . 24 15 2 . 9 8 Successful 30 | . 4 . . 13 4 2 . 4 3 Failed 34 | . 2 . . 11 11 . . 5 5 Catastrophic 12 | . 1 . . 5 3 . . 2 1 Database Lockouts . | . . . . . . . . . . Manual 31 | . 2 . . 17 5 . . 1 6 Terminals 45 | . 6 . . 18 6 2 . 5 8 Fabricators 9 | . . . . . 7 . . 2 . Repair Stations . | . . . . . . . . . . Recycling Units 3 | . . . . 3 . . . . . Scanalyzers 3 | . . . . 3 . . . . . Garrison Access 4 | . . . . . 2 . . 2 . Terminal Hacks 20 | . 4 . . 8 1 2 . 2 3 Record 5 | . 1 . . . 1 2 . . 1 Prototype ID Bank 1 | . . . . 1 . . . . . Open DSF 2 | . . . . . . . . 1 1 Branch Access Points 1 | . 1 . . . . . . . . Emergency Access Points 1 | . 1 . . . . . . . . Alert Level 1 | . 1 . . . . . . . . Unreport Threat 4 | . . . . 3 . . . 1 . Disarm Traps 1 | . . . . . . . . . 1 Dispatch Records 1 | . . . . 1 . . . . . Recall Investigation 1 | . . . . 1 . . . . . Recall Reinforcements 2 | . . . . 2 . . . . . Fabricator Hacks 5 | . . . . . 3 . . 2 . Load Schematic 3 | . . . . . 2 . . 1 . Build 2 | . . . . . 1 . . 1 . Repair Station Hacks . | . . . . . . . . . . Recycling Unit Hacks 2 | . . . . 2 . . . . . Report Inventory 1 | . . . . 1 . . . . . Retrieve Components 1 | . . . . 1 . . . . . Scanalyzer 3 | . . . . 3 . . . . . Insert Component 1 | . . . . 1 . . . . . Analyze 1 | . . . . 1 . . . . . Retrieve Study 1 | . . . . 1 . . . . . Garrison Access Hacks . | . . . . . . . . . . Unauthorized Hacks . | . . . . . . . . . . Terminals . | . . . . . . . . . . Fabricators . | . . . . . . . . . . Repair Stations . | . . . . . . . . . . Recycling Units . | . . . . . . . . . . Scanalyzers . | . . . . . . . . . . Garrison Access . | . . . . . . . . . . Data Cores Recovered . | . . . . . . . . . . Used . | . . . . . . . . . . Hacking Detections 27 | . 2 . . 8 8 . . 6 3 Full Trace Events 6 | . . . . 2 3 . . 1 . Feedback Events . | . . . . . . . . . . Feedback Blocked . | . . . . . . . . . . Robot Schematics Acquired . | . . . . . . . . . . Robots Built . | . . . . . . . . . . Authchips . | . . . . . . . . . . Time . | . . . . . . . . . . Total Robot Build Rating . | . . . . . . . . . . Part Schematics Acquired 1 | . . . . 1 . . . . . Parts Built 2 | . . . . . . . . 2 . Authchips . | . . . . . . . . . . Time 146 | . . . . . 73 . . 73 . Total Part Build Rating 6 | . . . . . . . . 6 . Part Studies Acquired 1 | . . . . 1 . . . . . Parts Repaired . | . . . . . . . . . . Time . | . . . . . . . . . . Parts Recycled . | . . . . . . . . . . Recycled Matter . | . . . . . . . . . . Retrieved Matter . | . . . . . . . . . . Retrieved Components 1 | . . . . 1 . . . . . Parts Scanalyzed 1 | . . . . 1 . . . . . Part Schematics Acquired 1 | . . . . 1 . . . . . Parts Damaged . | . . . . . . . . . . Bothacking | -11 -10 -10 -10 -8 -7 -6 -6 -6 -5 ------------ Run | Yrd Mat Min Sub Mat Fac Fac Was Fac Fac Used RIF Installer . | . . . . . . . . . . Robots Hacked . | . . . . . . . . . . Non-combat . | . . . . . . . . . . Combat . | . . . . . . . . . . Robot Hacks Applied . | . . . . . . . . . . Relay Couplers Released 2 | . . . . . . . . 2 . Machine Destruction 2 | . . . . . . . . 2 . Fabnet Peak Effective % . | . . . . . . . . . . Robots Rewired . | . . . . . . . . . . Allies Hacked . | . . . . . . . . . . Hacks Repelled . | . . . . . . . . . . Allies | -11 -10 -10 -10 -8 -7 -6 -6 -6 -5 -------- Run | Yrd Mat Min Sub Mat Fac Fac Was Fac Fac Total Allies 2 | . . 2 . . . . . . . Largest Group 2 | . . 2 1 . . . . . . Highest-Rated Group 41 | . . 41 14 . . . . . . Highest-Rated Ally 31 | . . 31 14 . . . . . . Total Orders . | . . . . . . . . . . Ally Attacks 5 | . . 3 2 . . . . . . Total Damage . | . . . . . . . . . . Kills . | . . . . . . . . . . Allies Corrupted . | . . . . . . . . . . Allies Melted . | . . . . . . . . . . Intel | -11 -10 -10 -10 -8 -7 -6 -6 -6 -5 ------- Run | Yrd Mat Min Sub Mat Fac Fac Was Fac Fac Active Infowar (turns) 728 | . . 52 . 676 . . . . . Sensors 709 | . . 52 . 657 . . . . . ECM 19 | . . . . 19 . . . . . Robot Analysis Total . | . . . . . . . . . . Derelict Logs Recovered 2 | . . . 2 . . . . . . Drone Launches . | . . . . . . . . . . Drone Recoveries . | . . . . . . . . . . Exploration | -11 -10 -10 -10 -8 -7 -6 -6 -6 -5 ------------- Run | Yrd Mat Min Sub Mat Fac Fac Was Fac Fac Turns Passed 8097 | 76 996 921 1221 1980 846 496 173 683 705 Spaces Moved 6039 | 43 526 509 742 1323 690 462 309 900 535 Core 16 | 3 . . . 11 . . . . 2 Treads 1475 | 40 526 509 308 92 . . . . . Legs 30 | . . . . 30 . . . . . Wheels 1743 | . . . 434 1190 112 . . . 7 Hover 2423 | . . . . . 578 462 309 900 174 Flight 352 | . . . . . . . . . 352 Fastest Speed 32 | 50 160 160 90 86 52 48 48 48 32 Average Speed 102 | 152 160 160 143 108 86 50 48 54 90 Slowest Speed 400 | 160 160 160 240 400 135 52 48 111 400 Overloaded Moves . | . . . . . . . . . . Propulsion Burnouts . | . . . . . . . . . . Robots Hopped 1 | . . . . . . . . . 1 Potential Cave-ins . | . . . . . . . . . . Cave-ins Triggered . | . . . . . . . . . . Exploration Rate (%) 40 | 3 64 65 39 73 14 12 95 23 16 Regions Visited 9 Branch Regions 2 Pre-discovered Areas 1 | . . . 1 . . . . . . Known Exits Taken 1 | . 1 . . . . . . . . Unknown Exits Taken 6 | 1 . 1 1 1 1 . . 1 . Scrap Searched 1 | . . 1 . . . . . . . Spaces Dug 7 | . . . . 1 . 1 . 5 . Terrain Destroyed 102 | . . . . 96 . 1 . 5 . Melee 6 | . . . . . . 1 . 5 . Projectile 11 | . . . . 11 . . . . . AOE 85 | . . . . 85 . . . . . Terrain Rammed . | . . . . . . . . . . Walls Destroyed . | . . . . . . . . . . Machines Disabled . | . . . . . . . . . . Actions | -11 -10 -10 -10 -8 -7 -6 -6 -6 -5 --------- Run | Yrd Mat Min Sub Mat Fac Fac Was Fac Fac Total 7519 | 51 606 580 841 1678 917 711 331 1068 736 Wait 873 | . 30 30 53 134 153 223 . 103 147 Move 6029 | 42 525 508 741 1322 689 462 308 899 533 Hop 1 | . . . . . . . . . 1 Pick Up 57 | 3 3 3 5 25 8 1 2 6 1 Fast Attach 59 | 6 6 1 2 25 8 1 3 3 4 Attach 36 | . . 3 3 11 7 1 1 . 10 Detach 10 | . . . . 3 2 . 1 . 4 Swap 39 | . 1 1 2 12 7 6 4 5 1 Drop 60 | . . . 3 24 15 3 4 8 3 Fire 223 | . 41 34 32 113 3 . . . . Melee 121 | . . . . 6 25 14 1 44 31 Ram 4 | . . . . 3 . . . . 1 Kick . | . . . . . . . . . . Crush . | . . . . . . . . . . Escape Stasis . | . . . . . . . . . . Rewire 7 | . . . . . . . 7 . . Trap . | . . . . . . . . . . Miscellaneous . | . . . . . . . . . . Route ------- -11/Scrapyard -10/Materials (discovered 2 exits: [*Mat] / *Min) -10/Mines (discovered 2 exits: [*Mat] / [*Sub]) -10/Subcaves -8/Materials -7/Factory -6/Factory -6/Waste -6/Factory -5/Factory History --------- Turn | Location | Event 4 | -11/Scrapyard | Discovered new exit (range 15) 77 | -11/Scrapyard | Entered Materials 135 | -10/Materials | Identified exit to Mines 307 | -10/Materials | Discovered new exit (range 16) 311 | -10/Materials | Build established: Mutant 1073 | -10/Materials | Entered Mines 1166 | -10/Mines | Discovered new exit (range 9) 1314 | -10/Mines | Discovered new exit (range 10) 1326 | -10/Mines | Lost 3 parts (1p1n1w) 1524 | -10/Mines | Found a damaged Exp. Sensor Array with a note attached 1527 | -10/Mines | Found Prototype Device 1528 | -10/Mines | Identified Exp. Sensor Array 1994 | -10/Mines | Entered Subcaves 1994 | -10/Subcaves | Accompanied by 1 ally 1995 | -10/Subcaves | Approached by a straggling Scientist 1996 | -10/Subcaves | Learned location of Zion (-6) 3016 | -10/Subcaves | Core integrity fell below 50% 3141 | -10/Subcaves | Ambushed by Subdwellers from Twisted Machinery 3196 | -10/Subcaves | Core integrity fell below 20% 3201 | -10/Subcaves | Discovered new exit (range 3) 3210 | -10/Subcaves | Learned Materials non-interactive machine intel 3215 | -10/Subcaves | Entered Materials 3215 | -8/Materials | Evolved 4 slots: Propulsion x1, Utility x3 3216 | -8/Materials | Loaded intel: 30 non-interactive machine locations 3259 | -8/Materials | Build established: Scavenger-Mutant 3591 | -8/Materials | Lost 5 parts (2n2u1w) 3653 | -8/Materials | Build established: Mutant 3905 | -8/Materials | Lost 3 parts (1p2w) 4215 | -8/Materials | Build established: Scavenger-Mutant 4412 | -8/Materials | Lost 3 parts (1n1u1w) 4453 | -8/Materials | Core integrity fell below 50% 4479 | -8/Materials | Lost 5 parts (2n2u1w) 4889 | -8/Materials | Build established: Mutant 5132 | -8/Materials | Discovered new exit (range 16) 5195 | -8/Materials | Entered Factory 5195 | -7/Factory | Evolved 2 slots: Utility x1, Weapon x1 5333 | -7/Factory | Lost 3 parts (1p1n1u) 6014 | -7/Factory | Discovered new exit (range 9) 6041 | -7/Factory | Entered another Factory area 6041 | -6/Factory | Evolved 2 slots: Propulsion x1, Utility x1 6535 | -6/Factory | Lost 3 parts (1p2u) 6537 | -6/Factory | Sucked down chute 6537 | -6/Factory | Entered Waste 6537 | -6/Waste | The area was eerily silent 6633 | -6/Waste | Discovered new exit (range 12) 6710 | -6/Waste | Entered Factory 6857 | -6/Factory | Fabricated Airjet? 7118 | -6/Factory | Build established: Gladiator 7365 | -6/Factory | Discovered new exit (range 12) 7393 | -6/Factory | Entered another Factory area 7393 | -5/Factory | Evolved 2 slots: Propulsion x1, Utility x1 8039 | -5/Factory | Cargo convoy interrupted 8044 | -5/Factory | Core integrity fell below 50% 8063 | -5/Factory | Core integrity fell below 20% 8080 | -5/Factory | Lost 9 parts (4n3u2w) 8098 | -5/Factory | Destroyed by P-70 Sage with Tesla Rifle Last Messages --------------- 08049_ Acquired 12 matter. 08049_ Slug penetrates Wall. 08049_ Core Analyzer destroyed. 08049_ Acquired Cesium-ion Thruster. 08049_ Penetrated by Slug. 08049_ Nuclear Pulse Thruster destroyed. 08053_ Slug penetrates Wall. 08057_ O-24 Administrator: "IFF HANDSHAKE FAILED. SECURING TERMINAL." 08061_ Slug penetrates E-15 Imp. 08061_ U-05 Engineer builds a Wall. 08074_ <9KBMKQOI3B1IVAG|CXFIB5O6EIW WS:NR4HK6C 08094_ VTOL Module destroyed. 08095_ Door malfunctions. 08097_ P-70 Sage resets P-70 Sage, system corruption cleaned. 08097_ Penetrated by Slug. 08098_ Cesium-ion Thruster blown off. 08098_ Gyrokinetic Inverter blown off. 08098_ E-15 Imp destroyed. Map ----- +----------------------------------------------------+ | ?????????????????????????????????????????????????? | | ?????????????????????????????????????????????????? | | ?????????????????????????????????????????????????? | | ?????????????????????????????????????????????????? | | ?????????????????????????????????????????????????? | | ?????????????????????????????????????????????????? | | ?????????????????????????????????????????????????? | | ?????????????????????????????????????????????????? | | ?????????????????????????????????????????????????? | | ?????????????????????????????????????????????????? | | ??????????????????##############?????????????????? | | ??????????????????# #?????????????????? | | ??????????????????# """" """" #?????????????????? | | ??????????????????# """" """" #?????????????????? | | ??????????????????# """" """" #?????????????????? | | ??????????????????# """" """" #?????????????????? | | ??????????????????# #?????????????????? | | ??????????????????# """" """" !#?????????????????? | | ??????????????????# """" """" #?????????????????? | | ??????????????????# """" """" #?????????????????? | | ??????????????????# """" "" #?????????????????? | | ??????????????????# #?????????????????? | | ??????????????????# #?????????????????? | | ??????????????????#######/###########????????????? | | ??????????????????????# %= + #????????????? | | ??????????????????????# @= # #????????????? | | ??????????????????????# # #????????????? | | ????????????????#######Y + #????????????? | | ????????? ! [ # #????????????? | | ????????????????####### # #????????????? | | ??????????????????????# # #????????????? | | ??????????????????????# p # #????????????? | | ??????????????????????# # #????????????? | | ??????????????????????# #########????????????? | | ?? ? ?????????????????# p #????????????????????? | | ?" ? "????????????????# pp #????????????????????? | | ?" ? "????????????????# #????????????????????? | | ?" ? "????????????????# #????????????????????? | | " " " " #????????????# #????????????????????? | | " " " " #????????????# #????????????????????? | | " " " " ?????????????# #????????????????????? | | " " " "??????????????# #????????????????????? | | ???????????????# #????????????????????? | | ? ????????????????# #????????????????????? | | ###+################### #????????????????????? | | #????????????????????? | | #????????????????????? | | #????????????????????? | | #????????????????????? | | #????????????????????? | +----------------------------------------------------+ Best States ------------- Heat Dissipation 40 Energy Generation 25 Energy Capacity 325 Matter Stores 302 Matter Capacity 400 Sight Range 16 Robot Scan Range 20 Terrain Scan Density 10 ECM Strength 2 Additional Mass Support 6 Armor Coverage 300 Power Shielding 66 Propulsion Shielding 66 Weapon Shielding 66 Melee Speed Boost 50 Evasion (%) 63 Targeting Accuracy 5 Target Analysis 7 Core Analysis 6 Recoil Reduction 4 Particle Charging 15 Force Boost 20 Item Schematics ----------------- Airjet | -8/Materials | Scanalyzed Robot Schematics ------------------ None Fabricated ------------ Airjet | x2 | -6/Factory Repaired ---------- Nothing Studied --------- Airjet | -8/Materials | Hacked Alien Tech Used ----------------- None Achievements -------------- Ew, Corruption Hammer Time Challenges ------------ None Game ------ Seed ReactiveThermalLaser Manual? 0 Play Time 01:27:14 Cumulative 48.6 hours Start 2026.06.28 @ 14:07:19 End 2026.06.29 @ 01:41:29 Sessions 3 Manual Loads 0 Difficulty Rogue Special Mode None Game No. 68 Rogue 36 Adventurer 32 Explorer 0 Win Type - Total 0 Types 0/0/0/0/0/0/0/0/0/0 Lore% 17 Gallery% 24 Achievement% 19 Wizard Run 0 Options --------- Layout 1 ASCII 0 Keyboard 0 Movement Numpad Keybinds 0 Fullscreen 1 Font 24/Smallcaps Map View 50x35 Zoom Use 0% Tactical HUD 1 Map Filters NONE Filters NONE Steam 1 RUN: 97d005c6-b8dc-4751-9bfe-d9252e042b52